fUST/lending_fUST_20260408
["ID","MTS","AMOUNT","RATE_DAILY","PERIOD"]
[420025554,1775623834883,-300.0,0.00012999,2]
[420025556,1775623834892,-1200.0,0.00012999,2]
[420025558,1775623834902,-3435.77429565,0.00013,2]
[420025789,1775623839093,-1062.26570435,0.00013,2]
[420025791,1775623839104,-1000.0,0.00013699,2]
[420025793,1775623839114,-500.0,0.00014274,2]
[420025795,1775623839124,-500.0,0.00014474,2]
[420025797,1775623839134,-320.72418,0.00014905,2]
[420025799,1775623839144,-500.0,0.00018432,2]
[420025801,1775623839158,-2647.5786828,0.00018514,2]
[420025804,1775623839170,-983.7390206,0.00018514,2]
[420026098,1775623842006,-3194.64028635,0.00018514,2]
[420026317,1775623844404,-427.77401337,0.00018329,2]
[420026320,1775623844416,-4572.22598663,0.00018329,2]
[420026322,1775623844426,-2688.43010365,0.00018514,2]
[420026324,1775623844436,-767.46830226,0.0001894,2]
[420026326,1775623844447,-1826.03086402,0.0001894,2]
[420026328,1775623844459,-461.77298872,0.0001894,2]
[420026330,1775623844469,-395.74988402,0.0001894,2]
[420026357,1775623844714,-3586.41626816,0.0001894,2]
[420026359,1775623844728,-8616.13108692,0.0001894,2]
[420026361,1775623844739,-500.0,0.00019375,2]
[420026363,1775623844750,-300.561799,0.00019555,2]
[420026365,1775623844761,-500.0,0.00019555,2]
[420026368,1775623844772,-500.0,0.00019555,2]
[420026370,1775623844782,-500.0,0.00019555,2]
[420026372,1775623844792,-500.0,0.00019555,2]
[420026374,1775623844802,-241.77026769,0.00019555,2]
[420026376,1775623844811,-193.40581437,0.00019555,2]
[420026378,1775623844821,-500.0,0.00019555,2]
[420026380,1775623844831,-500.0,0.00019555,2]
[420026382,1775623844841,-500.0,0.00019555,2]
[420026384,1775623844851,-500.0,0.00019555,2]
[420026386,1775623844861,-500.0,0.00019555,2]
[420026388,1775623844871,-500.0,0.00019555,2]
[420026390,1775623844881,-500.0,0.00019555,2]
[420026392,1775623844891,-500.0,0.00019555,2]
[420026394,1775623844900,-500.0,0.00019555,2]
[420026396,1775623844910,-511.35930869,0.00019555,2]
[420026398,1775623844919,-500.0,0.00019555,2]
[420026400,1775623844929,-500.7579496,0.00019555,2]
[420026402,1775623844939,-500.0,0.00019555,2]
[420026404,1775623844949,-500.0,0.00019555,2]
[420026407,1775623844961,-500.0,0.00019555,2]
[420026408,1775623844970,-500.0,0.00019555,2]
[420026410,1775623844980,-171.6185905,0.00019555,2]
[420026412,1775623844989,-500.0,0.00019555,2]
[420026414,1775623844998,-300.0,0.00019555,2]
[420026416,1775623845007,-160.57664776,0.00019555,2]
[420026418,1775623845017,-5750.28925014,0.00019556,2]
[420026630,1775623847184,-64889.39534451,0.00019556,2]
[420026633,1775623847195,-1267.63607971,0.00019556,2]
[420027635,1775624480516,-900.65107667,0.0001329,2]
[420027740,1775625032396,-2359.94233384,9.9e-05,2]
[420027741,1775625032408,-500.82288191,9.9e-05,2]
[420027742,1775625032420,-2139.23478425,9.9e-05,2]
[420027743,1775625032429,-198.16663372,0.0001,2]
[420027744,1775625032438,-560.0,0.0001,2]
[420027745,1775625032448,-900.65107667,0.00012638,2]
[420027746,1775625032458,-1117.0,0.00013023,2]
[420027747,1775625032468,-500.0,0.00013425,2]
[420027748,1775625032477,-500.0,0.00013425,2]
[420027749,1775625032487,-380.86654117,0.00013425,2]
[420027750,1775625032497,-1000.0,0.00013699,2]
[420027751,1775625032506,-1458.03506058,0.00014175,2]
[420027752,1775625032516,-3558.66002687,0.00014275,2]
[420027753,1775625032526,-4964.15346607,0.00014375,2]
[420027754,1775625032536,-5659.28499317,0.00014475,2]
[420027755,1775625032546,-6307.66205386,0.00014575,2]
[420027756,1775625032556,-2772.892227,0.00015015,2]
[420027758,1775625032565,-170.786212,0.00015024,2]
[420027759,1775625032576,-2772.892227,0.00015647,2]
[420027760,1775625032585,-2772.892227,0.00016279,2]
[420027761,1775625032595,-2772.892227,0.00016911,2]
[420027763,1775625032605,-8994.67922966,0.00017052,2]
[420027764,1775625032615,-2772.892227,0.00017544,2]
[420027765,1775625032625,-2772.892227,0.00018176,2]
[420027767,1775625032636,-155.0,0.00018262,2]
[420027768,1775625032646,-500.0,0.00018513,2]
[420027769,1775625032655,-222.0,0.00018513,2]
[420027771,1775625032665,-185.99204673,0.00018577,2]
[420027772,1775625032675,-334.45089843,0.00018577,2]
[420027773,1775625032685,-500.0,0.00018939,2]
[420027774,1775625032695,-333.0,0.00018939,2]
[420027775,1775625032705,-177.0224517,0.00018995,2]
[420027776,1775625032715,-152.1130436,0.00018995,2]
[420027777,1775625032724,-444.0,0.00018995,2]
[420027779,1775625032734,-222.0,0.00018995,2]
[420027781,1775625032743,-3275.2283486,0.00019124,2]
[420027782,1775625032752,-501.4027662,0.000194,2]
[420027784,1775625032762,-197.29183608,0.00019555,2]
[420027786,1775625032772,-225.47638409,0.00019555,2]
[420027788,1775625032782,-351.95454329,0.00019555,2]
[420027790,1775625032792,-190.3067555,0.00019555,2]
[420027792,1775625032802,-555.0,0.00019555,2]
[420027793,1775625032812,-444.0,0.00019555,2]
[420027795,1775625032821,-196.25102309,0.00019555,2]
[420027797,1775625032830,-199.0,0.00019572,2]
[420027799,1775625032840,-555.0,0.00019572,2]
[420027800,1775625032850,-188.85046586,0.00019626,2]
[420027801,1775625032859,-163.83909932,0.00019626,2]
[420027802,1775625032869,-9318.8632068,0.00019656,2]
[420027803,1775625032878,-185.73539895,0.00019744,2]
[420027804,1775625032887,-200.02242682,0.00019745,2]
[420027805,1775625032897,-1966.89418045,0.00019745,2]
[420027806,1775625032907,-2150.738,0.00019745,2]
[420027807,1775625032917,-537.6845,0.00019745,2]
[420027808,1775625032926,-500.0,0.00019773,2]
[420027809,1775625032936,-500.0,0.00019773,2]
[420027810,1775625032945,-502.216138,0.00019773,2]
[420027811,1775625032955,-500.0,0.00019773,2]
[420027812,1775625032964,-501.53018737,0.00019773,2]
[420027813,1775625032973,-500.0,0.00019773,2]
[420027814,1775625032982,-500.0,0.00019773,2]
[420027815,1775625032991,-500.0,0.00019773,2]
[420027816,1775625033001,-500.0,0.00019773,2]
[420027817,1775625033012,-500.0,0.00019799,2]
[420027818,1775625033021,-519.23918739,0.00019799,2]
[420027819,1775625033031,-500.0,0.00019799,2]
[420027820,1775625033042,-210.3932593,0.00019799,2]
[420027821,1775625033051,-500.0,0.00019799,2]
[420027822,1775625033060,-500.0,0.00019799,2]
[420027823,1775625033070,-435.38407006,0.00019799,2]
[420027824,1775625033080,-500.0,0.00019799,2]
[420027825,1775625033089,-500.0,0.00019799,2]
[420027826,1775625033099,-500.0,0.00019799,2]
[420027827,1775625033109,-500.0,0.00019799,2]
[420027828,1775625033119,-500.0,0.00019799,2]
[420027829,1775625033128,-500.0,0.00019799,2]
[420027830,1775625033138,-210.53056472,0.00019799,2]
[420027831,1775625033148,-500.0,0.00019799,2]
[420027832,1775625033158,-256.80424062,0.00019799,2]
[420027833,1775625033167,-167.613,0.000198,2]
[420027835,1775625033177,-195767.94635493,0.000198,2]
[420027860,1775625038294,-1095.2828373,9.801e-05,2]
[420028345,1775625044102,-3904.7171627,9.801e-05,2]
[420028346,1775625044112,-31253.17101732,0.000198,2]
[420028347,1775625044125,-4056.7015083,0.000198,2]
[420028482,1775625046254,-19703.06436907,0.000198,2]
[420028731,1775625680936,2257.27,9e-05,2]
[420028837,1775626232372,-5000.0,0.00012263,2]
[420028838,1775626232382,-1200.0,0.00012386,2]
[420028839,1775626232392,-300.0,0.00012386,2]
[420028840,1775626232404,-3843.12682751,0.00012387,2]
[420028841,1775626232416,-427.80092793,0.00012387,2]
[420028842,1775626232427,-729.07224456,0.00012387,2]
[420028843,1775626232436,-300.0,0.00012511,2]
[420028844,1775626232446,-299.92936256,0.00012511,2]
[420028845,1775626232458,-0.07063744,0.00012511,2]
[420028846,1775626232467,-191.0,0.00012511,2]
[420028847,1775626232477,-597.0,0.00012512,2]
[420028848,1775626232487,-280.37240096,0.000131,2]
[420028849,1775626232625,-719.62759904,0.000131,2]
[420028851,1775626232635,-2290.8213772,0.00013699,2]
[420028854,1775626232644,-1000.0,0.00013699,2]
[420028857,1775626232654,-160.36209,0.00017175,2]
[420028860,1775626232663,-2150.738,0.00019397,2]
[420028862,1775626232672,-537.6845,0.00019397,2]
[420028864,1775626232681,-1100.0,0.000194,2]
[420028866,1775626232690,-557.5788265,0.00019452,2]
[420028868,1775626232699,-173.13221644,0.00019507,2]
[420028869,1775626232709,-500.0,0.000196,2]
[420028871,1775626232718,-1703.1397762,0.00019616,2]
[420028872,1775626232727,-751.73162295,0.00019699,2]
[420028873,1775626232737,-306.2785922,0.000197,2]
[420029167,1775626241365,-195.17362551,0.000197,2]
[420029169,1775626241375,-300.66661949,0.00019773,2]
[420029171,1775626241387,-199.33338051,0.00019773,2]
[420029174,1775626241396,-500.0,0.00019773,2]
[420029176,1775626241406,-310.11544166,0.00019773,2]
[420029178,1775626241417,-500.0,0.00019773,2]
[420029180,1775626241426,-442.44089695,0.00019773,2]
[420029220,1775626241909,-716.0,0.000197,2]
[420029221,1775626241919,-57.55910305,0.00019773,2]
[420029222,1775626241929,-500.0,0.00019773,2]
[420029223,1775626241940,-500.0,0.00019773,2]
[420029224,1775626241949,-500.0,0.00019773,2]
[420029225,1775626241959,-220.0,0.00019775,5]
[420029226,1775626241968,-537.6845,0.00019788,2]
[420029227,1775626241977,-217.49343486,0.00019799,2]
[420029228,1775626241986,-216.57159871,0.00019799,2]
[420029229,1775626241996,-339.83349196,0.00019799,2]
[420029230,1775626242006,-224.28688353,0.00019799,2]
[420029231,1775626242016,-363.46743117,0.00019799,2]
[420029232,1775626242026,-500.0,0.00019799,2]
[420029234,1775626242036,-500.0,0.00019799,2]
[420029236,1775626242045,-500.0,0.00019799,2]
[420029238,1775626242055,-554.76884905,0.00019799,2]
[420029240,1775626242064,-500.0,0.00019799,2]
[420029242,1775626242074,-500.0,0.00019799,2]
[420029244,1775626242083,-500.0,0.00019799,2]
[420029246,1775626242092,-500.0,0.00019799,2]
[420029247,1775626242101,-247.3713953,0.00019799,2]
[420029250,1775626242111,-164.81016273,0.000198,2]
[420029251,1775626242120,-2900.98574145,0.000198,2]
[420029253,1775626242130,-19221.07784123,0.000198,2]
[420029256,1775626242142,-4783.18568281,0.000198,2]
[420029258,1775626242154,-35501.75816062,0.000198,2]
[420029260,1775626242167,-19142.75077144,0.000198,2]
[420029719,1775626246861,-5000.0,0.00019575,2]
[420029721,1775626246873,-7068.58019113,0.000198,2]
[420031182,1775626381037,-2000.0,0.00034141,120]
[420031183,1775626381069,-1048.0,0.00034141,120]
[420031184,1775626381101,-371.2432888,0.00034141,120]
[420031185,1775626381132,-272.92210607,0.00034141,120]
[420031186,1775626381166,-500.0,0.00034141,120]
[420031187,1775626381199,-500.0,0.00034141,120]
[420031188,1775626381229,-500.0,0.00034141,120]
[420031189,1775626381259,-500.0,0.00034141,120]
[420031190,1775626381288,-500.0,0.00034141,120]
[420031191,1775626381319,-648.46142542,0.00034141,120]
[420031192,1775626381349,-500.0,0.00034141,120]
[420031193,1775626381381,-500.0,0.00034141,120]
[420031194,1775626381411,-500.0,0.00034141,120]
[420031195,1775626381442,-500.0,0.00034141,120]
[420031196,1775626381472,-500.0,0.00034141,120]
[420031197,1775626381502,-500.0,0.00034141,120]
[420031198,1775626381532,-500.0,0.00034141,120]
[420031199,1775626381564,-504.77768515,0.00034141,120]
[420031200,1775626381595,-500.0,0.00034141,120]
[420031201,1775626381626,-500.0,0.00034141,120]
[420031202,1775626381658,-500.0,0.00034141,120]
[420031203,1775626381689,-500.0,0.00034141,120]
[420031204,1775626381719,-500.0,0.00034141,120]
[420031205,1775626381750,-500.0,0.00034141,120]
[420031206,1775626381780,-500.0,0.00034141,120]
[420031207,1775626381809,-500.0,0.00034141,120]
[420031208,1775626381839,-500.0,0.00034141,120]
[420031209,1775626381867,-500.0,0.00034141,120]
[420031210,1775626381896,-500.0,0.00034141,120]
[420031211,1775626381925,-500.0,0.00034141,120]
[420031212,1775626381954,-500.0,0.00034141,120]
[420031213,1775626381982,-500.0,0.00034141,120]
[420031214,1775626382017,-500.0,0.00034141,120]
[420031215,1775626382047,-500.0,0.00034141,120]
[420031216,1775626382078,-500.0,0.00034141,120]
[420031217,1775626382107,-500.0,0.00034141,120]
[420031218,1775626382138,-500.0,0.00034141,120]
[420031219,1775626382169,-500.0,0.00034141,120]
[420031220,1775626382199,-500.0,0.00034141,120]
[420031221,1775626382228,-500.0,0.00034141,120]
[420031222,1775626382259,-500.0,0.00034141,120]
[420031223,1775626382291,-229.08735911,0.00034141,120]
[420031224,1775626382322,-500.0,0.00034141,120]
[420031225,1775626382353,-500.0,0.00034141,120]
[420031226,1775626382387,-500.0,0.00034141,120]
[420031227,1775626382418,-500.0,0.00034141,120]
[420031228,1775626382450,-594.55,0.00034141,120]
[420031229,1775626382482,-1568.39,0.00034141,120]
[420031230,1775626382513,-1568.39,0.00034141,120]
[420031231,1775626382544,-1568.39,0.00034141,120]
[420031232,1775626382578,-1568.39,0.00034141,120]
[420031233,1775626382610,-1568.39,0.00034141,120]
[420031234,1775626382643,-1568.39,0.00034141,120]
[420031235,1775626382675,-1568.39,0.00034141,120]
[420031236,1775626382707,-1568.39,0.00034141,120]
[420031237,1775626382741,-1568.39,0.00034141,120]
[420031238,1775626382780,-1568.39,0.00034141,120]
[420031239,1775626382813,-1568.39,0.00034141,120]
[420031240,1775626382844,-1568.39,0.00034141,120]
[420031241,1775626382878,-1568.39,0.00034141,120]
[420031242,1775626382910,-1568.39,0.00034141,120]
[420031243,1775626382943,-1568.39,0.00034141,120]
[420031244,1775626382977,-1568.39,0.00034141,120]
[420031245,1775626383010,-1568.39,0.00034141,120]
[420031246,1775626383040,-1568.39,0.00034141,120]
[420031247,1775626383072,-1568.39,0.00034141,120]
[420031248,1775626383103,-1568.39,0.00034141,120]
[420031249,1775626383135,-1568.39,0.00034141,120]
[420031250,1775626383167,-1568.39,0.00034141,120]
[420031251,1775626383198,-1568.39,0.00034141,120]
[420031252,1775626383230,-1568.6121543,0.00034141,120]
[420031253,1775626383261,-500.0,0.00034141,120]
[420031254,1775626383292,-500.0,0.00034141,120]
[420031255,1775626383324,-500.0,0.00034141,120]
[420031256,1775626383356,-500.0,0.00034141,120]
[420031257,1775626383387,-500.0,0.00034141,120]
[420031258,1775626383419,-500.0,0.00034141,120]
[420031259,1775626383450,-500.0,0.00034141,120]
[420031260,1775626383697,-500.0,0.00034141,120]
[420031261,1775626383729,-400.20522641,0.00034141,120]
[420031262,1775626383760,-500.0,0.00034141,120]
[420031263,1775626383791,-500.0,0.00034141,120]
[420031264,1775626383822,-500.0,0.00034141,120]
[420031265,1775626383854,-500.0,0.00034141,120]
[420031266,1775626383886,-500.0,0.00034141,120]
[420031267,1775626383918,-500.0,0.00034141,120]
[420031268,1775626383949,-500.0,0.00034141,120]
[420031269,1775626383981,-500.0,0.00034141,120]
[420031270,1775626384013,-500.0,0.00034141,120]
[420031271,1775626384044,-305.35003316,0.00034141,120]
[420031272,1775626384074,-250.5341719,0.00034141,120]
[420031273,1775626384106,-729.88,0.00034141,120]
[420031274,1775626384135,-729.88,0.00034141,120]
[420031275,1775626384167,-729.88,0.00034141,120]
[420031276,1775626384198,-729.88,0.00034141,120]
[420031277,1775626384228,-729.88,0.00034141,120]
[420031278,1775626384258,-729.88,0.00034141,120]
[420031279,1775626384289,-729.88,0.00034141,120]
[420031280,1775626384321,-729.88,0.00034141,120]
[420031281,1775626384351,-729.88,0.00034141,120]
[420031282,1775626384382,-729.88,0.00034141,120]
[420031283,1775626384412,-729.88,0.00034141,120]
[420031284,1775626384443,-729.88,0.00034141,120]
[420031285,1775626384473,-729.88,0.00034141,120]
[420031286,1775626384503,-729.88,0.00034141,120]
[420031287,1775626384532,-729.88,0.00034141,120]
[420031288,1775626384564,-729.88,0.00034141,120]
[420031289,1775626384595,-729.88,0.00034141,120]
[420031290,1775626384626,-729.88,0.00034141,120]
[420031291,1775626384657,-729.88,0.00034141,120]
[420031292,1775626384687,-729.88,0.00034141,120]
[420031293,1775626384718,-729.88,0.00034141,120]
[420031294,1775626384749,-729.88,0.00034141,120]
[420031295,1775626384782,-729.88,0.00034141,120]
[420031296,1775626384812,-729.89420958,0.00034141,120]
[420031297,1775626384843,-500.0,0.00034141,120]
[420031298,1775626384875,-500.0,0.00034141,120]
[420031299,1775626384904,-500.0,0.00034141,120]
[420031300,1775626384934,-500.0,0.00034141,120]
[420031301,1775626384964,-500.0,0.00034141,120]
[420031302,1775626384992,-312.90894491,0.00034141,120]
[420031303,1775626385024,-500.0,0.00034141,120]
[420031304,1775626385053,-500.0,0.00034141,120]
[420031305,1775626385083,-500.0,0.00034141,120]
[420031306,1775626385112,-500.0,0.00034141,120]
[420031307,1775626385141,-500.0,0.00034141,120]
[420031308,1775626385170,-500.0,0.00034141,120]
[420031309,1775626385407,-500.0,0.00034141,120]
[420031310,1775626385439,-500.0,0.00034141,120]
[420031311,1775626385470,-500.0,0.00034141,120]
[420031312,1775626385500,-347.32521249,0.00034141,120]
[420031313,1775626385529,-500.0,0.00034141,120]
[420031314,1775626385564,-500.0,0.00034141,120]
[420031315,1775626385594,-500.0,0.00034141,120]
[420031316,1775626385625,-500.0,0.00034141,120]
[420031317,1775626385656,-500.0,0.00034141,120]
[420031318,1775626385688,-500.0,0.00034141,120]
[420031319,1775626385724,-500.0,0.00034141,120]
[420031320,1775626385756,-500.0,0.00034141,120]
[420031321,1775626385787,-500.0,0.00034141,120]
[420031322,1775626385817,-500.0,0.00034141,120]
[420031323,1775626385846,-500.0,0.00034141,120]
[420031324,1775626385876,-500.0,0.00034141,120]
[420031325,1775626385906,-500.0,0.00034141,120]
[420031326,1775626385936,-500.0,0.00034141,120]
[420031327,1775626385966,-500.0,0.00034141,120]
[420031328,1775626385996,-500.0,0.00034141,120]
[420031329,1775626386028,-500.0,0.00034141,120]
[420031330,1775626386056,-500.0,0.00034141,120]
[420031331,1775626386084,-500.0,0.00034141,120]
[420031332,1775626386112,-500.0,0.00034141,120]
[420031333,1775626386141,-500.0,0.00034141,120]
[420031334,1775626386170,-288.66799362,0.00034141,120]
[420031335,1775626386199,-1471.85,0.00034141,120]
[420031336,1775626386227,-1471.85,0.00034141,120]
[420031337,1775626386256,-1471.85,0.00034141,120]
[420031338,1775626386284,-1471.85,0.00034141,120]
[420031339,1775626386314,-1471.85,0.00034141,120]
[420031340,1775626386344,-1471.85,0.00034141,120]
[420031341,1775626386374,-1471.85,0.00034141,120]
[420031342,1775626386406,-1471.85,0.00034141,120]
[420031343,1775626386436,-1471.85,0.00034141,120]
[420031344,1775626386468,-1471.85,0.00034141,120]
[420031345,1775626386498,-1471.85,0.00034141,120]
[420031346,1775626386528,-1471.85,0.00034141,120]
[420031347,1775626386559,-1471.85,0.00034141,120]
[420031348,1775626386590,-1471.85,0.00034141,120]
[420031349,1775626386621,-1471.85,0.00034141,120]
[420031350,1775626386661,-1471.85,0.00034141,120]
[420031351,1775626386693,-1471.85,0.00034141,120]
[420031352,1775626386728,-1471.85,0.00034141,120]
[420031353,1775626386762,-1471.85,0.00034141,120]
[420031354,1775626386795,-1471.85,0.00034141,120]
[420031355,1775626386995,-1471.85,0.00034141,120]
[420031356,1775626387033,-1471.85,0.00034141,120]
[420031357,1775626387067,-1471.85,0.00034141,120]
[420031358,1775626387100,-1471.95582531,0.00034141,120]
[420031359,1775626387135,-1280.96,0.00034141,120]
[420031360,1775626387168,-1280.96,0.00034141,120]
[420031361,1775626387202,-1280.96,0.00034141,120]
[420031362,1775626387235,-1280.96,0.00034141,120]
[420031363,1775626387268,-1280.96,0.00034141,120]
[420031364,1775626387301,-1280.96,0.00034141,120]
[420031365,1775626387335,-1280.96,0.00034141,120]
[420031366,1775626387368,-1280.96,0.00034141,120]
[420031367,1775626387401,-1280.96,0.00034141,120]
[420031368,1775626387436,-1280.96,0.00034141,120]
[420031369,1775626387470,-1280.96,0.00034141,120]
[420031370,1775626387504,-1280.96,0.00034141,120]
[420031371,1775626387537,-1280.96,0.00034141,120]
[420031372,1775626387573,-1280.96,0.00034141,120]
[420031373,1775626387610,-1280.96,0.00034141,120]
[420031374,1775626387645,-1280.96,0.00034141,120]
[420031375,1775626387682,-1280.96,0.00034141,120]
[420031376,1775626387718,-1280.96,0.00034141,120]
[420031377,1775626387754,-1280.96,0.00034141,120]
[420031378,1775626387789,-500.0,0.00034141,120]
[420031379,1775626387826,-500.0,0.00034141,120]
[420031380,1775626387861,-500.0,0.00034141,120]
[420031381,1775626387899,-500.0,0.00034141,120]
[420031382,1775626387932,-636.56721758,0.00034141,120]
[420031383,1775626387966,-1280.96,0.00034141,120]
[420031384,1775626387999,-1280.96,0.00034141,120]
[420031385,1775626388038,-1280.96,0.00034141,120]
[420031386,1775626388074,-1280.96,0.00034141,120]
[420031387,1775626388108,-1281.10423748,0.00034141,120]
[420031388,1775626388142,-584.03296807,0.00034141,120]
[420031389,1775626388177,-615.73059632,0.00034141,120]
[420031390,1775626388212,-1105.35,0.00034141,120]
[420031391,1775626388246,-1105.35,0.00034141,120]
[420031392,1775626388281,-1105.35,0.00034141,120]
[420031393,1775626388316,-1105.35,0.00034141,120]
[420031394,1775626388351,-1105.35,0.00034141,120]
[420031395,1775626388385,-1105.35,0.00034141,120]
[420031396,1775626388419,-1105.35,0.00034141,120]
[420031397,1775626388456,-1105.35,0.00034141,120]
[420031398,1775626388492,-1105.35,0.00034141,120]
[420031399,1775626388526,-1105.35,0.00034141,120]
[420031400,1775626388561,-1105.35,0.00034141,120]
[420031401,1775626388596,-1105.35,0.00034141,120]
[420031402,1775626388633,-1105.35,0.00034141,120]
[420031403,1775626388666,-1105.35,0.00034141,120]
[420031404,1775626388703,-1105.35,0.00034141,120]
[420031405,1775626388738,-1105.35,0.00034141,120]
[420031406,1775626388773,-1105.35,0.00034141,120]
[420031407,1775626388808,-1105.35,0.00034141,120]
[420031408,1775626388843,-1105.35,0.00034141,120]
[420031409,1775626388878,-1105.35,0.00034141,120]
[420031410,1775626388912,-1105.35,0.00034141,120]
[420031411,1775626388945,-1105.35,0.00034141,120]
[420031412,1775626388979,-1105.35,0.00034141,120]
[420031413,1775626389012,-1105.442504,0.00034141,120]
[420031414,1775626389046,-501.31304726,0.00034141,120]
[420031415,1775626389081,-500.0,0.00034141,120]
[420031416,1775626389117,-500.0,0.00034141,120]
[420031417,1775626389153,-500.0,0.00034141,120]
[420031418,1775626389189,-500.0,0.00034141,120]
[420031419,1775626389223,-500.0,0.00034141,120]
[420031420,1775626389259,-500.0,0.00034141,120]
[420031421,1775626389294,-500.0,0.00034141,120]
[420031422,1775626389328,-500.0,0.00034141,120]
[420031423,1775626389366,-500.0,0.00034141,120]
[420031424,1775626389406,-500.0,0.00034141,120]
[420031425,1775626389441,-500.0,0.00034141,120]
[420031426,1775626389476,-564.19329776,0.00034141,120]
[420031427,1775626389510,-500.0,0.00034141,120]
[420031428,1775626389546,-500.0,0.00034141,120]
[420031429,1775626389581,-500.0,0.00034141,120]
[420031430,1775626389615,-500.0,0.00034141,120]
[420031431,1775626389651,-500.0,0.00034141,120]
[420031432,1775626389685,-500.0,0.00034141,120]
[420031433,1775626389718,-500.0,0.00034141,120]
[420031434,1775626389752,-500.0,0.00034141,120]
[420031435,1775626389785,-500.0,0.00034141,120]
[420031436,1775626389820,-236.99969756,0.00034141,120]
[420031437,1775626389853,-500.0,0.00034141,120]
[420031438,1775626389887,-500.0,0.00034141,120]
[420031439,1775626389920,-500.0,0.00034141,120]
[420031440,1775626389958,-500.0,0.00034141,120]
[420031441,1775626389992,-500.0,0.00034141,120]
[420031442,1775626390027,-500.0,0.00034141,120]
[420031443,1775626390060,-500.0,0.00034141,120]
[420031444,1775626390095,-500.0,0.00034141,120]
[420031445,1775626390129,-500.0,0.00034141,120]
[420031446,1775626390164,-500.0,0.00034141,120]
[420031447,1775626390197,-500.0,0.00034141,120]
[420031448,1775626390231,-500.0,0.00034141,120]
[420031449,1775626390266,-500.0,0.00034141,120]
[420031450,1775626390306,-500.0,0.00034141,120]
[420031451,1775626390341,-500.0,0.00034141,120]
[420031452,1775626390376,-500.0,0.00034141,120]
[420031453,1775626390412,-500.0,0.00034141,120]
[420031454,1775626390448,-500.0,0.00034141,120]
[420031455,1775626390484,-503.15828007,0.00034141,120]
[420031456,1775626390518,-500.0,0.00034141,120]
[420031457,1775626390553,-500.0,0.00034141,120]
[420031458,1775626390588,-500.0,0.00034141,120]
[420031459,1775626390625,-445.22178092,0.00034141,120]
[420031460,1775626390661,-513.77479191,0.00034141,120]
[420031461,1775626390697,-545.93,0.00034141,120]
[420031462,1775626390733,-545.93,0.00034141,120]
[420031463,1775626390768,-545.93,0.00034141,120]
[420031464,1775626390804,-545.93,0.00034141,120]
[420031465,1775626390839,-545.93,0.00034141,120]
[420031466,1775626390874,-545.93,0.00034141,120]
[420031467,1775626390909,-545.93,0.00034141,120]
[420031468,1775626390945,-545.93,0.00034141,120]
[420031469,1775626390980,-545.93,0.00034141,120]
[420031470,1775626391015,-545.93,0.00034141,120]
[420031471,1775626391048,-545.93,0.00034141,120]
[420031472,1775626391081,-545.93,0.00034141,120]
[420031473,1775626391113,-545.93,0.00034141,120]
[420031474,1775626391147,-545.93,0.00034141,120]
[420031475,1775626391181,-545.93,0.00034141,120]
[420031476,1775626391215,-545.93,0.00034141,120]
[420031477,1775626391247,-545.93,0.00034141,120]
[420031478,1775626391288,-545.93,0.00034141,120]
[420031479,1775626391331,-545.93,0.00034141,120]
[420031480,1775626391373,-545.93,0.00034141,120]